fUST/lending_fUST_20241027
["ID","MTS","AMOUNT","RATE_DAILY","PERIOD"]
[340871597,1729967438847,-160.312917,0.0003084,2]
[340871598,1729967438857,-160.312917,0.00030996,2]
[340871599,1729967438868,-72.33081476,0.00031153,2]
[340871600,1729967438990,-87.98210224,0.00031153,2]
[340871601,1729967439003,-3388.532095,0.00031185,2]
[340871602,1729967439013,-160.312917,0.0003131,2]
[340871603,1729967439024,-160.312917,0.00031466,2]
[340871604,1729967439033,-160.312917,0.00031623,2]
[340871605,1729967439044,-3388.532095,0.0003187,2]
[340871606,1729967439053,-151.78012079,0.0003203,2]
[340871607,1729967439065,-580.43576203,0.0003213,7]
[340871608,1729967439076,-10307.34799888,0.0003213,2]
[340871622,1729967440903,-14592.65200112,0.0003213,2]
[340871623,1729967440913,-3921.17296025,0.0003213,2]
[340871624,1729967440923,-3388.532095,0.00032555,2]
[340871625,1729967440933,-197.950584,0.00032877,120]
[340871626,1729967440944,-424.57592755,0.000339,2]
[340871627,1729967440954,-424.57592753,0.000339,2]
[340871628,1729967440964,-424.57592753,0.000339,2]
[340871629,1729967440976,-742.11164325,0.00033928,2]
[340871630,1729967440986,-1212.47282924,0.00034097,3]
[340871631,1729967440995,-3921.1729602,0.00034303,2]
[340871632,1729967441006,-151.6291068,0.00034845,10]
[340871633,1729967441016,-200.0,0.00035328,14]
[340871634,1729967441026,-1333.72011217,0.00036143,7]
[340871635,1729967441036,-3921.1729602,0.00036476,2]
[340871636,1729967441046,-151.089,0.000369,2]
[340871637,1729967441056,-237.0,0.0003723,37]
[340871638,1729967441066,-151.066,0.0003753,120]
[340871639,1729967441077,-8353.4012304,0.00037631,2]
[340871640,1729967441089,-8353.4012304,0.00038012,2]
[340871641,1729967441099,-1333.72011217,0.00038189,7]
[340871642,1729967441111,-1000.0,0.00038211,2]
[340871643,1729967441121,-1000.0,0.00038253,2]
[340871644,1729967441132,-151.93,0.00038305,3]
[340871645,1729967441141,-455.79,0.00038305,3]
[340871646,1729967441151,-5739.91739227,0.00038315,5]
[340871647,1729967441163,-44496.80665198,0.00038315,5]
[340871648,1729967441174,-95950.39665283,0.00038315,5]
[340871649,1729967441185,-28358.08334592,0.00038315,5]
[340871650,1729967441195,-150.5,0.00038326,120]
[340871651,1729967441204,-500.0,0.00038335,2]
[340871652,1729967441213,-1359.96,0.00038335,120]
[340871653,1729967441223,-150.5,0.00038336,120]
[340871654,1729967441232,-58181.7346809,0.00038346,5]
[340871655,1729967441242,-150.5,0.00038346,120]
[340871656,1729967441252,-500.0,0.00038356,120]
[340871657,1729967441265,-418.70241817,0.00038356,120]
[340871658,1729967441275,-500.0,0.00038356,120]
[340871659,1729967441284,-500.0,0.00038356,120]
[340871660,1729967441294,-500.0,0.00038356,120]
[340871661,1729967441303,-501.77803929,0.00038356,120]
[340871662,1729967441313,-841.69,0.00038356,120]
[340871663,1729967441324,-500.0,0.00038356,120]
[340871664,1729967441334,-978.25,0.00038356,120]
[340871665,1729967441344,-500.0,0.00038356,120]
[340871666,1729967441355,-500.0,0.00038356,120]
[340871667,1729967441365,-1439.5,0.00038356,120]
[340871668,1729967441375,-500.0,0.00038356,120]
[340871669,1729967441387,-500.0,0.00038356,120]
[340871670,1729967441397,-500.0,0.00038356,120]
[340871671,1729967441408,-500.0,0.00038356,120]
[340871672,1729967441418,-500.0,0.00038356,120]
[340871673,1729967441428,-617.44314957,0.00038356,120]
[340871674,1729967441438,-500.0,0.00038356,120]
[340871675,1729967441448,-500.0,0.00038356,120]
[340871676,1729967441458,-505.42586807,0.00038356,30]
[340871677,1729967441468,-500.0,0.00038356,120]
[340871678,1729967441478,-500.0,0.00038356,120]
[340871679,1729967441489,-500.0,0.00038356,120]
[340871680,1729967441499,-500.0,0.00038356,120]
[340871681,1729967441510,-500.0,0.00038356,120]
[340871682,1729967441522,-500.0,0.00038356,120]
[340871683,1729967441531,-500.0,0.00038356,120]
[340871684,1729967441543,-500.0,0.00038356,120]
[340871685,1729967441553,-500.0,0.00038356,120]
[340871686,1729967441563,-500.0,0.00038356,90]
[340871687,1729967441572,-500.0,0.00038356,120]
[340871688,1729967441582,-500.0,0.00038356,120]
[340871689,1729967441592,-702.33,0.00038356,120]
[340871690,1729967441601,-500.0,0.00038356,120]
[340871691,1729967441611,-1166.46,0.00038356,14]
[340871692,1729967441621,-500.0,0.00038356,120]
[340871693,1729967441631,-500.0,0.00038356,120]
[340871694,1729967441641,-500.0,0.00038356,120]
[340871695,1729967441651,-500.0,0.00038356,120]
[340871696,1729967441661,-500.0,0.00038356,120]
[340871697,1729967441673,-500.0,0.00038356,120]
[340871698,1729967441684,-500.0,0.00038356,120]
[340871699,1729967441695,-500.0,0.00038356,120]
[340871700,1729967441706,-1332.96,0.00038356,120]
[340871701,1729967441716,-301.78,0.00038356,7]
[340871702,1729967441727,-200.0,0.00038356,120]
[340871703,1729967441738,-696.79,0.00038356,120]
[340871704,1729967441748,-506.8299753,0.00038356,120]
[340871705,1729967441758,-500.0,0.00038356,120]
[340871706,1729967441768,-1297.18,0.00038356,120]
[340871707,1729967441777,-500.0,0.00038356,120]
[340871708,1729967441786,-500.0,0.00038356,120]
[340871709,1729967441796,-500.0,0.00038356,120]
[340871710,1729967441805,-500.0,0.00038356,120]
[340871711,1729967441815,-500.0,0.00038356,30]
[340871712,1729967441824,-500.0,0.00038356,120]
[340871713,1729967441834,-500.0,0.00038356,120]
[340871714,1729967441844,-500.0,0.00038356,120]
[340871715,1729967441853,-500.0,0.00038356,120]
[340871716,1729967441863,-500.0,0.00038356,120]
[340871717,1729967441872,-500.0,0.00038356,120]
[340871718,1729967441882,-500.0,0.00038356,120]
[340871719,1729967441893,-500.0,0.00038356,120]
[340871720,1729967441903,-501.81751118,0.00038356,120]
[340871721,1729967441913,-500.0,0.00038356,120]
[340871722,1729967441923,-226.62946558,0.00038356,120]
[340871723,1729967441932,-500.0,0.00038356,120]
[340871724,1729967441943,-418.00773927,0.00038356,120]
[340871725,1729967441952,-500.0,0.00038356,120]
[340871726,1729967441962,-1084.53,0.00038356,120]
[340871727,1729967441971,-500.0,0.00038356,120]
[340871728,1729967441981,-500.0,0.00038356,120]
[340871729,1729967441990,-500.0,0.00038356,120]
[340871730,1729967441999,-714.28,0.00038356,120]
[340871731,1729967442009,-1000.0,0.00038356,120]
[340871732,1729967442018,-500.0,0.00038356,120]
[340871733,1729967442028,-500.0,0.00038356,120]
[340871734,1729967442040,-500.0,0.00038356,120]
[340871735,1729967442051,-500.54403551,0.00038356,5]
[340871736,1729967442061,-503.85195692,0.00038356,120]
[340871737,1729967442071,-500.0,0.00038356,120]
[340871738,1729967442081,-537.6,0.00038356,120]
[340871739,1729967442092,-500.0,0.00038356,120]
[340871740,1729967442101,-658.82,0.00038356,120]
[340871741,1729967442111,-641.63025947,0.00038356,120]
[340871742,1729967442121,-500.0,0.00038356,120]
[340871743,1729967442130,-500.0,0.00038356,120]
[340871744,1729967442140,-462.73877482,0.00038356,120]
[340871745,1729967442150,-326.03552483,0.00038356,120]
[340871746,1729967442160,-505.57167744,0.00038356,120]
[340871747,1729967442169,-500.0,0.00038356,120]
[340871748,1729967442178,-500.0,0.00038356,120]
[340871749,1729967442188,-500.0,0.00038356,120]
[340871750,1729967442198,-523.84191601,0.00038356,120]
[340871751,1729967442208,-500.0,0.00038356,120]
[340871752,1729967442219,-500.0,0.00038356,120]
[340871753,1729967442228,-607.13372358,0.00038356,120]
[340871754,1729967442238,-264.13384697,0.00038356,120]
[340871755,1729967442249,-500.0,0.00038356,7]
[340871756,1729967442259,-500.0,0.00038356,120]
[340871757,1729967442269,-500.0,0.00038356,120]
[340871758,1729967442279,-500.0,0.00038356,120]
[340871759,1729967442289,-500.0,0.00038356,120]
[340871760,1729967442300,-500.0,0.00038356,120]
[340871761,1729967442309,-500.0,0.00038356,120]
[340871762,1729967442319,-505.42749808,0.00038356,120]
[340871763,1729967442328,-566.26,0.00038356,120]
[340871764,1729967442339,-577.54370067,0.00038356,120]
[340871765,1729967442348,-500.0,0.00038356,120]
[340871766,1729967442358,-500.0,0.00038356,120]
[340871767,1729967442369,-583.65,0.00038356,120]
[340871768,1729967442378,-500.4241381,0.00038356,120]
[340871769,1729967442388,-1006.43,0.00038356,120]
[340871770,1729967442398,-500.0,0.00038356,120]
[340871771,1729967442408,-500.0,0.00038356,120]
[340871772,1729967442417,-500.0,0.00038356,120]
[340871773,1729967442427,-500.0,0.00038356,120]
[340871774,1729967442436,-500.0,0.00038356,120]
[340871775,1729967442446,-500.0,0.00038356,120]
[340871776,1729967442456,-500.0,0.00038356,120]
[340871777,1729967442467,-500.0,0.00038356,120]
[340871778,1729967442476,-500.0,0.00038356,120]
[340871779,1729967442487,-500.0,0.00038356,120]
[340871780,1729967442496,-500.0,0.00038356,120]
[340871781,1729967442506,-543.37662178,0.00038356,120]
[340871782,1729967442516,-500.0,0.00038356,120]
[340871783,1729967442525,-500.0,0.00038356,2]
[340871784,1729967442535,-500.0,0.00038356,120]
[340871785,1729967442544,-500.0,0.00038356,120]
[340871786,1729967442554,-500.0,0.00038356,60]
[340871787,1729967442564,-500.0,0.00038356,30]
[340871788,1729967442573,-500.0,0.00038356,120]
[340871789,1729967442583,-500.0,0.00038356,120]
[340871790,1729967442593,-1367.22,0.00038356,120]
[340871791,1729967442603,-500.0,0.00038356,120]
[340871792,1729967442612,-500.0,0.00038356,120]
[340871793,1729967442622,-441.98371166,0.00038356,120]
[340871794,1729967442632,-500.79992945,0.00038356,120]
[340871795,1729967442643,-500.0,0.00038356,120]
[340871796,1729967442653,-500.0,0.00038356,120]
[340871797,1729967442662,-500.0,0.00038356,120]
[340871798,1729967442674,-799.58,0.00038356,120]
[340871799,1729967442683,-500.0,0.00038356,120]
[340871800,1729967442692,-500.0,0.00038356,120]
[340871801,1729967442702,-500.0,0.00038356,120]
[340871802,1729967442712,-500.0,0.00038356,120]
[340871803,1729967442722,-500.0,0.00038356,120]
[340871804,1729967442731,-500.0,0.00038356,120]
[340871805,1729967442740,-500.0,0.00038356,120]
[340871806,1729967442750,-500.0,0.00038356,120]
[340871807,1729967442759,-500.0,0.00038356,120]
[340871808,1729967442770,-500.0,0.00038356,120]
[340871809,1729967442780,-500.0,0.00038356,120]
[340871810,1729967442790,-502.3442425,0.00038356,120]
[340871811,1729967442800,-500.0,0.00038356,120]
[340871812,1729967442809,-520.43709815,0.00038356,120]
[340871813,1729967442820,-500.0,0.00038356,120]
[340871814,1729967442829,-500.0,0.00038356,120]
[340871815,1729967442839,-500.0,0.00038356,120]
[340871816,1729967442849,-1090.34,0.00038356,120]
[340871817,1729967442858,-500.0,0.00038356,120]
[340871818,1729967442869,-502.48604759,0.00038356,120]
[340871819,1729967442879,-500.0,0.00038356,120]
[340871820,1729967442890,-505.43174002,0.00038356,120]
[340871821,1729967442902,-500.0,0.00038356,120]
[340871822,1729967442912,-500.0,0.00038356,120]
[340871823,1729967442922,-500.0,0.00038356,120]
[340871824,1729967442931,-500.0,0.00038356,120]
[340871825,1729967442941,-500.0,0.00038356,120]
[340871826,1729967442954,-500.0,0.00038356,120]
[340871827,1729967442967,-500.94294601,0.00038356,120]
[340871828,1729967442977,-500.0,0.00038356,120]
[340871829,1729967442988,-500.0,0.00038356,120]
[340871830,1729967442998,-500.0,0.00038356,120]
[340871831,1729967443008,-223.74821708,0.00038356,120]
[340871837,1729967443381,-276.25178292,0.00038356,120]
[340871839,1729967443390,-500.0,0.00038356,120]
[340871840,1729967443400,-500.0,0.00038356,120]
[340871841,1729967443411,-236.56506351,0.00038356,120]
[340871842,1729967443424,-265.46357608,0.00038356,120]
[340871843,1729967443436,-407.03642392,0.00038356,120]
[340871844,1729967443450,-273.42357608,0.00038356,120]
[340871845,1729967443460,-500.0,0.00038356,120]
[340871846,1729967443470,-589.72,0.00038356,120]
[340871847,1729967443482,-500.0,0.00038356,120]
[340871848,1729967443493,-506.63492081,0.00038356,120]
[340871849,1729967443504,-500.0,0.00038356,120]
[340871850,1729967443513,-503.51060054,0.00038356,120]
[340871851,1729967443524,-500.0,0.00038356,120]
[340871852,1729967443535,-522.19112184,0.00038356,120]
[340871853,1729967443545,-500.0,0.00038356,120]
[340871854,1729967443555,-621.55,0.00038356,120]
[340871855,1729967443564,-500.0,0.00038356,120]
[340871856,1729967443574,-500.0,0.00038356,120]
[340871857,1729967443583,-505.44584616,0.00038356,120]
[340871858,1729967443594,-464.36993295,0.00038356,120]
[340871859,1729967443663,-35.63006705,0.00038356,120]
[340871860,1729967443673,-500.0,0.00038356,120]
[340871861,1729967443683,-500.0,0.00038356,120]
[340871862,1729967443694,-598.03442188,0.00038356,120]
[340871863,1729967443703,-579.17,0.00038356,120]
[340871864,1729967443713,-500.0,0.00038356,120]
[340871865,1729967443722,-557.20008734,0.00038356,120]
[340871866,1729967443732,-644.01,0.00038356,120]
[340871867,1729967443741,-718.33,0.00038356,120]
[340871868,1729967443751,-500.0,0.00038356,120]
[340871870,1729967443760,-522.00100301,0.00038356,120]
[340871872,1729967443770,-500.0,0.00038356,120]
[340871874,1729967443779,-500.0,0.00038356,120]
[340871875,1729967443790,-500.0,0.00038356,120]
[340871876,1729967443800,-500.0,0.00038356,120]
[340871877,1729967443809,-500.0,0.00038356,120]
[340871878,1729967443819,-500.0,0.00038356,120]
[340871879,1729967443830,-220.4408963,0.00038356,120]
[340871880,1729967443841,-407.00007436,0.00038356,120]
[340871881,1729967443855,-60.745917,0.00038356,120]
[340871882,1729967443864,-500.0,0.00038356,120]
[340871883,1729967443875,-417.423015,0.00038356,120]
[340871884,1729967443896,-82.576985,0.00038356,120]
[340871885,1729967443907,-1976.72,0.00038356,120]
[340871886,1729967443916,-550.173015,0.00038356,120]
[340871887,1729967444207,-282.423403,0.00035416,2]
[340871888,1729967444219,-418.136985,0.00038356,120]
[340871889,1729967444228,-210.758112,0.00038356,120]
[340871890,1729967444246,-289.241888,0.00038356,120]
[340871891,1729967444256,-1617.98,0.00038356,120]
[340871892,1729967444267,-500.0,0.00038356,120]
[340871893,1729967444278,-500.0,0.00038356,120]
[340871894,1729967444288,-953.11,0.00038356,120]
[340871895,1729967444297,-500.0,0.00038356,120]
[340871896,1729967444307,-6.223112,0.00038356,120]
[340871897,1729967444320,-493.776888,0.00038356,120]
[340871898,1729967444337,-1206.21,0.00038356,120]
[340871899,1729967444347,-612.98,0.00038356,120]
[340871900,1729967444357,-592.54,0.00038356,120]
[340871901,1729967444368,-500.0,0.00038356,120]
[340871902,1729967444377,-320.33075463,0.00038356,120]
[340871903,1729967444393,-82.95772983,0.00038356,120]
[340871904,1729967444403,-943.02461317,0.00038356,7]
[340871905,1729967444416,-419.97538683,0.00038356,7]
[340871906,1729967444429,-500.0,0.00038356,120]
[340871907,1729967444438,-718.72,0.00038356,120]
[340871908,1729967444450,-324.68058313,0.00038356,120]
[340871912,1729967446746,-338.02941687,0.00038356,120]
[340871913,1729967446757,-500.0,0.00038356,120]
[340871914,1729967446768,-500.0,0.00038356,120]
[340871915,1729967446779,-619.14,0.00038356,120]
[340871916,1729967446789,-500.0,0.00038356,120]
[340871917,1729967446799,-1224.58,0.00038356,120]
[340871918,1729967446810,-1349.3,0.00038356,120]
[340871919,1729967446820,-516.34585586,0.00038356,120]
[340871920,1729967446831,-612.54242677,0.00038356,120]
[340871921,1729967446842,-500.0,0.00038356,120]
[340871922,1729967446851,-1752.17,0.00038356,120]
[340871923,1729967446863,-500.0,0.00038356,10]
[340871924,1729967446875,-795.37,0.00038356,120]
[340871925,1729967446885,-500.0,0.00038356,120]
[340871926,1729967446895,-500.0,0.00038356,120]
[340871927,1729967446904,-500.0,0.00038356,120]
[340871928,1729967446914,-710.36,0.00038356,120]
[340871929,1729967446923,-500.0,0.00038356,120]
[340871930,1729967446932,-584.12531069,0.00038356,10]
[340871931,1729967446942,-500.0,0.00038356,120]
[340871932,1729967446951,-500.0,0.00038356,120]
[340871933,1729967446960,-500.0,0.00038356,120]
[340871934,1729967446969,-500.0,0.00038356,120]
[340871935,1729967446978,-500.0,0.00038356,120]
[340871936,1729967446987,-500.0,0.00038356,120]
[340871937,1729967446997,-680.48,0.00038356,120]
[340871938,1729967447007,-500.0,0.00038356,120]
[340871939,1729967447017,-500.0,0.00038356,120]
[340871940,1729967447029,-500.0,0.00038356,120]
[340871942,1729967447038,-866.19,0.00038356,120]
[340871943,1729967447048,-502.0013799,0.00038356,120]
[340871944,1729967447059,-500.0,0.00038356,120]
[340871945,1729967447068,-644.89669415,0.00038356,120]
[340871946,1729967447078,-500.0,0.00038356,120]
[340871947,1729967447089,-500.0,0.00038356,120]
[340871948,1729967447099,-500.0,0.00038356,120]
[340871949,1729967447108,-1257.75,0.00038356,120]
[340871950,1729967447118,-500.0,0.00038356,120]
[340871951,1729967447130,-500.0,0.00038356,120]
[340871952,1729967447141,-500.0,0.00038356,120]
[340871953,1729967447151,-500.0,0.00038356,120]
[340871954,1729967447162,-500.0,0.00038356,120]
[340871955,1729967447172,-500.0,0.00038356,120]
[340871956,1729967447181,-596.01,0.00038356,120]
[340871957,1729967447191,-500.0,0.00038356,120]
[340871958,1729967447201,-500.0,0.00038356,120]
[340871959,1729967447212,-500.0,0.00038356,120]
[340871960,1729967447223,-500.0,0.00038356,120]
[340871961,1729967447232,-500.0,0.00038356,120]
[340871962,1729967447242,-500.0,0.00038356,120]
[340871963,1729967447253,-500.0,0.00038356,120]
[340871964,1729967447265,-2340.62,0.00038356,120]
[340871965,1729967447276,-501.65593209,0.00038356,30]
[340871966,1729967447288,-500.0,0.00038356,120]
[340871967,1729967447299,-500.0,0.00038356,120]
[340871968,1729967447309,-500.0,0.00038356,120]
[340871969,1729967447318,-500.0,0.00038356,2]
[340871970,1729967447327,-1036.77,0.00038356,120]
[340871971,1729967447337,-500.0,0.00038356,120]
[340871972,1729967447347,-539.15,0.00038356,120]
[340871973,1729967447357,-2255.78,0.00038356,120]
[340871974,1729967447369,-500.0,0.00038356,120]
[340871975,1729967447379,-500.0,0.00038356,120]
[340871976,1729967447389,-500.0,0.00038356,120]
[340871977,1729967447398,-1504.22,0.00038356,120]
[340871978,1729967447408,-500.0,0.00038356,120]
[340871979,1729967447420,-985.68,0.00038356,120]
[340871980,1729967447430,-500.0,0.00038356,120]
[340871981,1729967447439,-500.0,0.00038356,120]
[340871982,1729967447448,-500.0,0.00038356,120]
[340871983,1729967447458,-500.0,0.00038356,120]
[340871984,1729967447467,-503.17137531,0.00038356,120]
[340871985,1729967447477,-452.25073773,0.00038356,7]
[340871986,1729967447486,-927.91009946,0.00038356,120]
[340871987,1729967447499,-583.23,0.00038356,120]
[340871988,1729967447508,-655.85,0.00038356,120]
[340871989,1729967447519,-500.0,0.00038356,120]
[340871991,1729967447529,-500.0,0.00038356,120]
[340871992,1729967447538,-500.0,0.00038356,120]
[340871993,1729967447548,-762.64,0.00038356,120]
[340871994,1729967447559,-512.83,0.00038356,120]
[340871995,1729967447569,-500.0,0.00038356,120]
[340871996,1729967447580,-500.0,0.00038356,120]
[340871997,1729967447590,-500.0,0.00038356,120]
[340871998,1729967447599,-585.88,0.00038356,120]
[340871999,1729967447609,-500.0,0.00038356,120]
[340872000,1729967447621,-500.0,0.00038356,120]
[340872001,1729967447631,-761.34,0.00038356,120]
[340872002,1729967447641,-1460.06,0.00038356,120]
[340872003,1729967447653,-504.36273805,0.00038356,120]
[340872004,1729967447664,-500.0,0.00038356,120]
[340872005,1729967447675,-500.0,0.00038356,120]
[340872006,1729967447684,-500.0,0.00038356,120]
[340872007,1729967447694,-500.0,0.00038356,120]
[340872008,1729967447703,-500.0,0.00038356,120]
[340872009,1729967447713,-626.03,0.00038356,60]
[340872010,1729967447722,-500.0,0.00038356,120]
[340872011,1729967447731,-500.0,0.00038356,120]
[340872012,1729967447741,-500.0,0.00038356,120]
[340872013,1729967447751,-1079.39,0.00038356,120]
[340872014,1729967447760,-500.0,0.00038356,120]
[340872015,1729967447770,-944.81,0.00038356,120]
[340872016,1729967447780,-500.0,0.00038356,120]
[340872017,1729967447790,-600.26436724,0.00038356,120]
[340872018,1729967447800,-791.45,0.00038356,120]
[340872019,1729967447811,-546.97,0.00038356,120]
[340872020,1729967447822,-1195.53,0.00038356,120]
[340872021,1729967447832,-838.87,0.00038356,120]
[340872022,1729967447843,-500.0,0.00038356,120]
[340872023,1729967447853,-500.0,0.00038356,120]
[340872024,1729967447862,-500.0,0.00038356,120]
[340872025,1729967447872,-641.09,0.00038356,120]
[340872026,1729967447882,-500.0,0.00038356,120]
[340872027,1729967447891,-500.0,0.00038356,120]
[340872028,1729967447901,-728.74,0.00038356,120]
[340872029,1729967447910,-500.0,0.00038356,120]
[340872030,1729967447920,-500.0,0.00038356,120]
[340872031,1729967447930,-1065.49,0.00038356,120]
[340872032,1729967447939,-500.0,0.00038356,120]
[340872033,1729967447948,-500.0,0.00038356,120]
[340872034,1729967447957,-500.0,0.00038356,120]
[340872035,1729967447968,-500.0,0.00038356,120]
[340872036,1729967447978,-500.59932326,0.00038356,120]
[340872037,1729967447988,-1018.13,0.00038356,120]
[340872038,1729967447997,-500.0,0.00038356,120]
[340872039,1729967448007,-500.0,0.00038356,120]
[340872040,1729967448016,-500.0,0.00038356,120]
[340872041,1729967448025,-925.6,0.00038356,120]
[340872042,1729967448034,-544.76,0.00038356,120]
[340872043,1729967448044,-500.0,0.00038356,120]
[340872044,1729967448054,-500.0,0.00038356,120]
[340872045,1729967448064,-1000.0,0.00038356,120]
[340872046,1729967448073,-500.0,0.00038356,120]
[340872047,1729967448083,-500.0,0.00038356,120]
[340872048,1729967448094,-500.0,0.00038356,120]
[340872049,1729967448103,-500.0,0.00038356,120]
[340872050,1729967448114,-693.72,0.00038356,120]
[340872051,1729967448123,-500.0,0.00038356,120]
[340872052,1729967448133,-500.0,0.00038356,120]
[340872053,1729967448142,-500.0,0.00038356,120]
[340872054,1729967448151,-972.67,0.00038356,120]
[340872055,1729967448161,-500.0,0.00038356,10]
[340872056,1729967448170,-500.0,0.00038356,120]
[340872057,1729967448179,-806.22,0.00038356,120]
[340872058,1729967448189,-500.0,0.00038356,120]
[340872059,1729967448198,-500.0,0.00038356,120]
[340872060,1729967448208,-500.91858965,0.00038356,120]
[340872061,1729967448217,-500.0,0.00038356,120]
[340872062,1729967448226,-500.0,0.00038356,120]
[340872063,1729967448235,-1714.37,0.00038356,120]
[340872064,1729967448245,-500.0,0.00038356,120]
[340872065,1729967448255,-500.0,0.00038356,120]
[340872066,1729967448266,-500.0,0.00038356,120]
[340872067,1729967448275,-500.0,0.00038356,120]
[340872068,1729967448286,-500.0,0.00038356,120]
[340872069,1729967448295,-500.0,0.00038356,120]
[340872070,1729967448305,-500.0,0.00038356,120]
[340872071,1729967448314,-500.0,0.00038356,120]
[340872072,1729967448324,-500.0,0.00038356,120]
[340872073,1729967448334,-500.0,0.00038356,120]
[340872074,1729967448344,-535.6754645,0.00038356,120]
[340872075,1729967448355,-1530.22,0.00038356,30]
[340872076,1729967448365,-500.0,0.00038356,120]
[340872077,1729967448376,-1984.77,0.00038356,120]
[340872078,1729967448387,-781.54,0.00038356,120]
[340872079,1729967448396,-500.0,0.00038356,120]
[340872080,1729967448406,-309.81330085,0.00038356,120]
[340872081,1729967448417,-526.79805587,0.00038356,120]
[340872082,1729967448427,-500.0,0.00038356,120]
[340872083,1729967448437,-500.0,0.00038356,120]
[340872084,1729967448446,-803.41,0.00038356,120]
[340872085,1729967448456,-500.0,0.00038356,120]
[340872086,1729967448467,-718.74,0.00038356,120]
[340872087,1729967448478,-1048.39,0.00038356,120]
[340872088,1729967448490,-1416.81,0.00038356,120]
[340872089,1729967448500,-500.0,0.00038356,120]
[340872090,1729967448511,-860.42,0.00038356,120]
[340872091,1729967448521,-607.34,0.00038356,120]
[340872092,1729967448531,-500.0,0.00038356,120]
[340872093,1729967448540,-500.0,0.00038356,120]
[340872094,1729967448550,-500.0,0.00038356,120]
[340872095,1729967448560,-688.95,0.00038356,120]
[340872096,1729967448572,-1204.91,0.00038356,120]
[340872097,1729967448582,-500.0,0.00038356,120]
[340872098,1729967448593,-714.33,0.00038356,120]
[340872099,1729967448603,-611.1,0.00038356,120]
[340872100,1729967448612,-601.16137424,0.00038356,120]
[340872101,1729967448623,-500.0,0.00038356,120]
[340872102,1729967448634,-500.0,0.00038356,120]
[340872103,1729967448644,-892.85,0.00038356,120]
[340872104,1729967448655,-965.1,0.00038356,120]
[340872105,1729967448665,-500.0,0.00038356,120]
[340872106,1729967448677,-500.0,0.00038356,120]
[340872107,1729967448686,-381.24742012,0.00038356,120]
[340872108,1729967448696,-500.0,0.00038356,120]
[340872109,1729967448706,-500.0,0.00038356,120]
[340872110,1729967448718,-714.45,0.00038356,120]
[340872111,1729967448728,-500.0,0.00038356,120]
[340872112,1729967448739,-500.0,0.00038356,120]
[340872113,1729967448749,-16406.19338166,0.00038356,60]
[340872114,1729967448768,-323.56061344,0.00038356,60]
[340872115,1729967448780,-602.46540731,0.00038356,60]
[340872116,1729967448791,-2305.29999999,0.00038356,60]
[340872117,1729967448802,-6072.0055767,0.00038356,60]
[340872118,1729967448818,-4261.6958004,0.00038356,60]
[340872119,1729967448830,-2540.0992205,0.00038356,60]
[340872120,1729967448839,-500.0,0.00038356,120]
[340872121,1729967448849,-500.0,0.00038356,120]
[340872122,1729967448858,-500.0,0.00038356,120]
[340872123,1729967448868,-500.0,0.00038356,120]